bitfinex-derivatives/quotes_SOLF0:USTF0_20260203
["timestamp","ask_amount","ask_price","bid_price","bid_amount"]
[1770078444587,1.80292583,104.16,104.11,3.57134296]
[1770078445182,8.6471,104.18,104.12,3.57134296]
[1770078445782,41.6109201,104.19,104.13,3.57134296]
[1770078445990,32.9646201,104.19,104.13,3.57134296]
[1770078446389,1.8046201,104.18,104.13,3.57134296]
[1770078448789,0.06069782,104.17,104.13,3.57134296]
[1770078449286,0.06069782,104.17,104.12,8.6512]
[1770078449287,1.86376855,104.17,104.12,8.6512]
[1770078449491,1.86376855,104.17,104.12,12.22254296]
[1770078450497,0.06069782,104.17,104.13,3.57134296]
[1770078452687,41.60947073,104.19,104.13,3.57134296]
[1770078452688,32.96307073,104.19,104.14,3.57134296]
[1770078452992,31.16,104.19,104.14,3.63239066]
[1770078454292,31.16,104.19,104.14,12.28249066]
[1770078454591,31.16,104.19,104.15,3.57134296]
[1770078456495,31.16,104.19,104.15,12.22084296]
[1770078456796,31.16,104.19,104.16,3.57134296]
[1770078457792,31.16,104.19,104.16,3.63232276]
[1770078462895,32.93075626,104.19,104.16,0.00028198]
[1770078463596,41.57705626,104.19,104.16,0.00028198]
[1770078464896,10.41051444,104.18,104.12,12.22324296]
[1770078465097,1.76321444,104.17,104.12,347.75134296]
[1770078465398,1.76321444,104.17,104.12,344.18]
[1770078465794,10.41131444,104.17,104.12,344.18]
[1770078467104,1.76321444,104.17,104.12,356.40294296]
[1770078467304,41.57842909,104.19,104.12,347.75134296]
[1770078467603,1.77152909,104.18,104.12,347.75134296]
[1770078468003,1.77152909,104.18,104.13,12.22184296]
[1770078469301,1.77152909,104.18,104.13,3.57134296]
[1770078470297,0.06070552,104.17,104.13,3.57134296]
[1770078473405,0.06070552,104.17,104.13,12.22224296]
[1770078475100,31.16,104.19,104.14,12.31269987]
[1770078477207,14.85470552,104.19,104.16,3.66239987]
[1770078477802,14.85470552,104.19,104.15,358.8493]
[1770078477803,10.39873575,104.22,104.14,134.5583]
[1770078478004,10.39873575,104.22,104.15,350.56]
[1770078479104,10.39873575,104.22,104.16,8.648]
[1770078479304,8.6447,104.21,104.15,350.56]
[1770078480108,13.0319685,104.21,104.12,134.5858]
[1770078480310,4.3872685,104.21,104.15,8.6494]
[1770078480605,4.3872685,104.25,104.15,134.5448]
[1770078480802,4.3872685,104.25,104.16,351.84]
[1770078481011,4.3872685,104.25,104.17,134.52]
[1770078481211,4.3872685,104.27,104.17,134.52]
[1770078481412,4.3872685,104.27,104.18,351.86]
[1770078481610,4.3872685,104.27,104.17,134.52]
[1770078481811,4.43038829,104.25,104.18,351.86]
[1770078482008,4.43038829,104.25,104.14,134.561]
[1770078482204,4.43038829,104.25,104.15,351.86]
[1770078482613,4.43038829,104.22,104.12,134.578]
[1770078482813,4.43038829,104.22,104.13,486.5546]
[1770078484313,4.37785842,104.21,104.15,8.6493]
[1770078485419,13.02245842,104.21,104.13,351.98]
[1770078486521,4.37785842,104.21,104.16,8.6487]
[1770078488824,4.37785842,104.21,104.15,8.6494]
[1770078490318,13.02275842,104.21,104.15,8.6494]
[1770078492024,13.02275842,104.21,104.14,8.6502]
[1770078492626,13.02275842,104.21,104.15,8.6495]
[1770078493627,13.00448455,104.2,104.14,8.6504]
[1770078497528,4.35888455,104.2,104.15,8.6494]
[1770078498630,4.35888455,104.2,104.14,8.6502]
[1770078500333,4.35888455,104.2,104.15,8.6493]
[1770078502134,4.35888455,104.2,104.16,0.06077864]
[1770078503830,4.38562924,104.22,104.16,8.70897864]
[1770078504334,4.38562924,104.22,104.16,8.6482]
[1770078504937,13.02942924,104.22,104.16,8.6482]
[1770078510139,13.02942924,104.22,104.16,364.2882]
[1770078510340,13.02942924,104.22,104.16,364.2682]
[1770078512740,4.38562924,104.22,104.17,8.6478]
[1770078514144,4.38562924,104.22,104.18,8.647]
[1770078517845,4.38562924,104.22,104.16,364.2681]
[1770078523251,4.38562924,104.22,104.16,8.6481]
[1770078523447,4.38562924,104.22,104.17,236.08]
[1770078523752,13.02942924,104.22,104.17,236.08]
[1770078524455,13.02942924,104.22,104.16,8.6481]
[1770078524648,13.02942924,104.22,104.16,221.1081]
[1770078525753,8.643,104.23,104.17,8.6477]
[1770078525954,4.37929518,104.26,104.16,212.46]
[1770078526153,4.37929518,104.26,104.16,399.69133651]
[1770078526550,13.01989518,104.26,104.19,8.6462]
[1770078526846,4.37929518,104.26,104.17,187.22093651]
[1770078527050,4.37929518,104.28,104.21,8.6445]
[1770078527251,4.37929518,104.28,104.22,342.44]
[1770078527852,13.01819518,104.28,104.22,342.44]
[1770078528855,4.39628357,104.27,104.22,342.44]
[1770078529056,4.39628357,104.26,104.22,342.44]
[1770078531753,4.41413153,104.28,104.22,342.44]
[1770078532850,13.05293153,104.28,104.22,342.44]
[1770078533247,13.05293153,104.28,104.22,351.0837]
[1770078533248,4.41413153,104.27,104.22,351.0837]
[1770078534847,4.41413153,104.27,104.22,342.44]
[1770078535155,13.05373153,104.27,104.19,375.0254]
[1770078535657,4.41413153,104.27,104.2,8.6451]
[1770078537554,13.05393153,104.27,104.2,8.6451]
[1770078539359,8.6405,104.26,104.19,366.38]
[1770078540258,4.41413153,104.27,104.19,366.38]
[1770078540559,4.42589278,104.31,104.2,134.4834]
[1770078540754,4.42589278,104.31,104.21,502.8513]
[1770078540953,4.42589278,104.33,104.23,134.4453]
[1770078541455,4.42589278,104.33,104.25,8.6411]
[1770078542149,4.42589278,104.33,104.26,8.6404]
[1770078542357,4.37683865,104.34,104.25,134.42]
[1770078542751,4.37683865,104.34,104.27,8.6394]
[1770078543559,4.37683865,104.34,104.27,376.7394]
[1770078544849,13.01073865,104.34,104.27,376.7394]
[1770078545060,13.01073865,104.34,104.24,134.4289]
[1770078545061,4.37683865,104.34,104.23,134.4453]
[1770078545256,4.37419588,104.32,104.21,134.4707]
[1770078545560,4.37419588,104.31,104.22,368.82]
[1770078545759,4.37419588,104.29,104.22,377.463]
[1770078548857,13.01239588,104.29,104.22,377.463]
[1770078549060,4.38751806,104.28,104.22,8.643]
[1770078550558,13.02631806,104.28,104.22,8.643]
[1770078553460,13.00896063,104.27,104.19,134.4884]
[1770078553665,4.36936063,104.26,104.18,507.2256]
[1770078554162,4.36936063,104.26,104.19,134.4959]
[1770078554863,4.36936063,104.26,104.18,507.2256]
[1770078555164,4.36936063,104.27,104.19,134.4942]
[1770078555361,4.36936063,104.27,104.18,372.72]
[1770078557466,4.36142066,104.26,104.19,8.6461]
[1770078557662,4.36142066,104.26,104.18,372.72]
[1770078557870,4.36142066,104.26,104.18,374.72]
[1770078558064,4.36142066,104.26,104.17,134.5227]
[1770078558271,8.6395,104.28,104.18,134.5089]
[1770078558272,13.00092066,104.28,104.18,134.5089]
[1770078558567,13.00092066,104.28,104.19,342.32]
[1770078558769,4.36142066,104.28,104.21,8.6445]
[1770078560069,4.36142066,104.28,104.22,8.6429]
[1770078561973,4.3098638,104.27,104.21,8.6444]
[1770078563670,4.3098638,104.27,104.2,374.86]
[1770078563671,4.3098638,104.27,104.22,8.6437]
[1770078563872,4.3098638,104.27,104.2,374.86]
[1770078564272,4.3098638,104.27,104.2,376.38]
[1770078564773,12.9495638,104.27,104.21,8.6445]
[1770078565867,4.3098638,104.27,104.21,8.6445]
[1770078566676,12.9495638,104.27,104.21,8.6445]
[1770078567476,4.3098638,104.27,104.21,8.6445]
[1770078567976,4.3098638,104.27,104.22,8.6436]
[1770078569078,4.3098638,104.27,104.21,8.6444]
[1770078570382,12.9495638,104.27,104.21,8.6444]
[1770078573880,13.05315172,104.26,104.2,387.5854]
[1770078580591,4.48582116,104.25,104.2,378.94]
[1770078580794,4.48582116,104.24,104.18,382.68]
[1770078582298,13.12852116,104.24,104.18,391.3269]
[1770078583697,13.12852116,104.24,104.18,382.68]
[1770078583999,13.13496156,104.23,104.18,382.68]
[1770078585200,4.49206156,104.27,104.18,382.68]
[1770078585697,8.6413,104.25,104.18,391.327]
[1770078586603,13.12818026,104.26,104.19,8.6462]
[1770078586787,13.12818026,104.26,104.19,391.3862]
[1770078587501,4.48768026,104.26,104.19,382.74]
[1770078589291,13.12818026,104.26,104.19,391.3862]
[1770078590997,13.11579782,104.25,104.19,382.74]
[1770078591206,4.47419782,104.23,104.13,158.41213651]
[1770078591398,4.47419782,104.23,104.14,382.74]
[1770078591798,8.6448,104.21,104.14,382.74]
[1770078592404,8.6448,104.21,104.14,391.3903]
[1770078594003,8.6436,104.23,104.15,8.6488]
[1770078594203,8.6436,104.23,104.16,382.76]
[1770078594709,4.48196962,104.24,104.16,391.4087]
[1770078595703,4.48196962,104.24,104.14,134.5605]
[1770078595704,13.12049534,104.26,104.17,391.4276]
[1770078597603,13.12049534,104.26,104.17,382.78]
[1770078597604,4.47949534,104.26,104.17,382.78]
[1770078597809,4.47949534,104.26,104.18,382.78]
[1770078599502,4.47949534,104.26,104.19,8.6462]
[1770078601012,4.49589829,104.25,104.18,415.27473651]
[1770078601310,4.49589829,104.25,104.16,23.84773651]
[1770078601511,4.50064946,104.22,104.15,23.84773651]
[1770078601810,4.50064946,104.22,104.15,286.36]
[1770078602406,4.50064946,104.22,104.16,8.6487]
[1770078603012,4.50064946,104.22,104.15,286.36]
[1770078603507,13.14201935,104.21,104.15,286.36]
[1770078603902,4.49721935,104.2,104.15,286.36]
[1770078604507,4.49721935,104.2,104.12,23.84773651]
[1770078604706,4.49721935,104.2,104.11,23.84773651]
[1770078604909,4.49721935,104.2,104.12,252.56]
[1770078605714,4.47743716,104.17,104.12,252.56]
[1770078606414,4.47743716,104.19,104.12,261.2118]
[1770078606805,4.47743716,104.19,104.09,158.46453651]
[1770078607210,4.47743716,104.19,104.09,134.6168]
[1770078607613,4.47743716,104.19,104.1,382.82]
[1770078608414,13.13622463,104.18,104.1,391.4936]
[1770078608913,8.6471,104.18,104.11,8.6529]
[1770078611714,13.29938774,104.18,104.11,8.6529]
[1770078612808,4.65228774,104.18,104.11,8.6529]
[1770078613508,4.65228774,104.18,104.12,8.652]
[1770078614316,4.65874507,104.2,104.14,8.6503]
[1770078616516,13.30414507,104.2,104.14,8.6503]
[1770078617823,4.65874507,104.2,104.15,8.6494]
[1770078619121,4.65874507,104.2,104.12,517.5066]
[1770078619521,4.65874507,104.2,104.14,8.6503]
[1770078619724,13.30434507,104.2,104.14,8.6503]
[1770078623524,8.6462,104.19,104.14,8.6503]
[1770078623924,8.6462,104.19,104.13,8.651]
[1770078624928,13.24307095,104.19,104.13,8.651]
[1770078626421,13.24307095,104.19,104.15,0.06075807]
[1770078632028,4.59687095,104.19,104.15,0.06075807]
[1770078633331,13.25372885,104.21,104.15,8.71015807]
[1770078633732,13.25372885,104.21,104.15,8.6494]
[1770078634339,4.60912885,104.23,104.17,8.6475]
[1770078635533,4.6028104,104.25,104.18,8.6469]
[1770078635934,4.6028104,104.23,104.15,134.5475]
[1770078636138,4.6028104,104.23,104.15,517.5075]
[1770078636336,4.6028104,104.23,104.18,8.647]
[1770078638939,4.55416561,104.22,104.15,382.96]
[1770078639441,4.55900225,104.21,104.12,134.586]
[1770078639642,4.55900225,104.21,104.12,517.506]
[1770078640232,4.55900225,104.21,104.15,8.6494]
[1770078641436,13.20360225,104.21,104.15,8.6494]
[1770078642438,4.55900225,104.21,104.16,8.6485]
[1770078646147,8.644,104.22,104.16,8.6485]
[1770078646342,8.6431,104.23,104.17,8.6479]
[1770078646549,13.22366354,104.23,104.17,8.6479]
[1770078647548,13.22278849,104.24,104.18,8.647]
[1770078647946,4.58058849,104.23,104.16,295.0]
[1770078648442,4.58058849,104.23,104.14,158.40763651]
[1770078648642,134.4218,104.25,104.14,158.40763651]
[1770078648643,4.58058849,104.22,104.15,8.6495]
[1770078649147,13.22418849,104.23,104.14,517.4615]
[1770078649347,13.22418849,104.23,104.15,382.9]
[1770078650350,13.22418849,104.23,104.17,8.6477]
[1770078651055,8.6437,104.22,104.17,8.6477]
[1770078651652,13.20641014,104.22,104.15,382.9]
[1770078653357,4.56271014,104.21,104.12,158.43373651]
[1770078653652,4.56271014,104.21,104.12,541.31373651]
[1770078654358,13.20367812,104.2,104.14,8.6503]
[1770078656857,4.55817812,104.2,104.15,8.6495]
[1770078657056,8.6447,104.21,104.15,8.6495]
[1770078657252,13.23524007,104.21,104.15,8.6495]
[1770078659556,4.59336716,104.24,104.14,517.4596]
[1770078659754,4.59336716,104.24,104.14,541.30733651]
[1770078660258,13.23646716,104.23,104.16,8.6485]
[1770078660454,13.23646716,104.23,104.14,570.15733651]
[1770078660661,13.23626716,104.23,104.17,8.6472]
[1770078661158,4.59336716,104.24,104.17,0.06074254]
[1770078661356,4.59336716,104.24,104.17,23.90847905]
[1770078661557,4.59336716,104.24,104.17,357.64074254]
[1770078661751,13.23556716,104.24,104.17,366.2277]
[1770078661950,4.59336716,104.24,104.17,366.2277]
[1770078663057,13.22485321,104.22,104.15,23.84773651]
[1770078663258,13.22485321,104.22,104.14,541.28733651]
[1770078664361,13.22485321,104.22,104.16,8.6487]
[1770078665062,13.22485321,104.22,104.15,8.6494]
[1770078665758,4.61155977,104.21,104.15,8.6494]
[1770078666062,4.61155977,104.2,104.14,8.6497]
[1770078667362,4.61155977,104.2,104.15,8.6495]
[1770078668062,4.61675744,104.22,104.16,8.6486]
[1770078670155,4.6178,104.2,104.14,8.6497]
[1770078670661,4.6178,104.2,104.13,382.88]
[1770078670863,4.6178,104.2,104.15,8.6494]
[1770078671364,4.59612989,104.22,104.13,541.30163651]
[1770078671565,4.59612989,104.22,104.14,134.5614]
[1770078671857,4.59612989,104.22,104.14,158.40913651]
[1770078672765,4.59612989,104.22,104.16,8.6479]
[1770078673964,13.24002989,104.22,104.15,8.6494]
[1770078676872,13.24002989,104.22,104.16,8.6487]
[1770078677167,13.24002989,104.22,104.13,541.30163651]
[1770078678368,13.24002989,104.22,104.16,8.6486]
[1770078682775,4.58321229,104.21,104.16,8.6486]
[1770078684181,4.58321229,104.21,104.17,8.6478]
[1770078686386,4.58321229,104.21,104.16,8.6485]
[1770078689991,13.25636925,104.23,104.17,8.6478]
[1770078690187,13.25636925,104.23,104.16,23.84773651]
[1770078690382,8.6469,104.19,104.13,15.961699]
[1770078690581,8.6469,104.19,104.14,7.310599]
[1770078690992,8.6478,104.18,104.12,7.310599]
[1770078691891,8.648,104.17,104.12,7.310599]
[1770078692687,8.6488,104.16,104.1,7.28850297]
[1770078694092,134.4988,104.19,104.11,7.16737169]
[1770078694693,134.4884,104.2,104.12,7.16737169]
[1770078695794,8.6471,104.18,104.12,7.16737169]
[1770078700496,8.6482,104.17,104.12,7.16737169]
[1770078700698,8.6482,104.17,104.11,8.6528]
[1770078701197,8.6482,104.17,104.11,15.86768354]
[1770078702195,8.6482,104.17,104.12,7.22473596]
[1770078702596,8.6471,104.18,104.13,7.22473596]
[1770078704400,8.6479,104.17,104.13,7.22473596]
[1770078704698,134.511,104.18,104.11,7.21513523]
[1770078706091,8.6497,104.15,104.11,7.21513523]
[1770078706294,8.6497,104.15,104.09,7.22376758]
[1770078706492,134.5385,104.16,104.09,7.22376758]
[1770078706700,8.6512,104.13,104.09,7.22376758]
[1770078707805,8.6505,104.14,104.09,7.22376758]
[1770078707998,134.5385,104.16,104.09,7.22376758]
[1770078708798,8.6512,104.13,104.09,7.22376758]
[1770078709004,8.6512,104.13,104.11,0.06064092]
[1770078710004,8.6522,104.12,104.07,7.25999874]
[1770078713415,134.5385,104.16,104.08,7.28179934]
[1770078714907,8.6505,104.14,104.08,15.93709934]
[1770078715111,134.524,104.17,104.09,7.28179934]
[1770078715706,8.6487,104.16,104.1,7.28933069]
[1770078716516,0.06102281,104.14,104.1,7.28933069]
[1770078718213,0.06102281,104.14,104.1,15.94283069]
[1770078719018,0.06102281,104.14,104.09,8.6543]
[1770078719218,8.71152281,104.14,104.09,8.6543]
[1770078719617,269.116,104.15,104.06,7.30293739]
[1770078719814,134.5667,104.14,104.06,7.30293739]
[1770078720717,8.6528,104.12,104.06,7.30293739]
[1770078721613,8.6528,104.12,104.04,7.30912271]
[1770078721614,134.5907,104.12,104.04,7.30912271]
[1770078722819,8.6546,104.09,104.04,7.30912271]
[1770078724019,8.6538,104.1,104.04,7.30912271]
[1770078724318,134.5907,104.12,104.04,7.30912271]
[1770078725319,8.6538,104.1,104.04,7.30912271]
[1770078729720,8.6538,104.1,104.04,15.96782271]
[1770078730722,8.6538,104.1,104.05,7.27818132]
[1770078732522,134.5907,104.12,104.05,7.27818132]
[1770078732523,8.6546,104.09,104.05,7.27818132]
[1770078732822,134.576,104.13,104.05,15.93588132]
[1770078733123,134.576,104.13,104.06,7.27408697]
[1770078733324,134.5667,104.14,104.06,7.27408697]
[1770078734321,0.06073831,104.11,104.06,15.93098697]
[1770078736325,0.06073831,104.11,104.07,8.6562]
[1770078736526,0.06073831,104.11,104.06,7.27408697]
[1770078737222,0.06073831,104.11,104.06,15.93098697]
[1770078738931,8.71373831,104.11,104.06,15.93098697]
[1770078739131,8.71373831,104.11,104.06,7.27408697]
[1770078739531,8.6546,104.09,104.06,7.27408697]
[1770078739733,0.06073831,104.11,104.06,7.27408697]
[1770078740031,134.5892,104.12,104.06,7.27408697]
[1770078740731,8.6543,104.1,104.06,7.27408697]
[1770078741326,8.653,104.11,104.06,7.27408697]
[1770078742429,8.653,104.11,104.07,7.30640576]
[1770078742924,8.6522,104.12,104.07,7.30640576]
[1770078743629,8.6529,104.11,104.07,7.30640576]
[1770078744834,0.0611582,104.1,104.07,7.30640576]
[1770078754839,0.0611582,104.1,104.07,15.96250576]
[1770078758644,0.0611582,104.1,104.08,7.30803015]
[1770078760045,0.00051728,104.1,104.08,7.30803015]
[1770078760439,0.00051728,104.1,104.06,7.3181634]
[1770078760943,134.5768,104.13,104.06,7.3181634]
[1770078761335,8.653,104.11,104.06,7.3181634]
[1770078761745,8.6539,104.1,104.06,7.3181634]
[1770078768150,8.6579,104.05,104.01,7.28789148]
[1770078770550,8.6559,104.08,104.01,7.28789148]
[1770078770952,8.6547,104.09,104.04,7.26940202]
[1770078771151,444.127,104.13,104.04,7.26940202]
[1770078771342,182.967,104.13,104.04,7.26940202]
[1770078772351,8.6538,104.1,104.04,15.92790202]
[1770078773461,8.653,104.11,104.06,7.21583713]
[1770078776556,8.6544,104.1,104.04,15.872668]
[1770078777259,134.6183,104.1,104.02,15.8483709]
[1770078777660,134.6183,104.1,104.02,7.1887709]
[1770078777962,134.6402,104.08,104.01,383.9287709]
[1770078778555,8.6563,104.07,104.01,392.5898709]
[1770078778760,8.6563,104.07,104.02,7.1887709]
[1770078779261,8.6571,104.06,104.02,7.1887709]
[1770078779960,8.6562,104.07,104.02,7.1887709]
[1770078781464,8.6562,104.07,104.03,0.06062265]
[1770078782261,8.6573,104.06,104.03,0.06062265]
[1770078783167,134.6529,104.07,104.0,7.21220412]
[1770078783561,0.33499062,104.03,103.94,163.6609]
[1770078783760,0.33499062,104.03,103.93,518.185]
[1770078784465,0.33499062,104.03,103.94,134.8207]
[1770078785165,8.6604,104.02,103.93,518.192]
[1770078785469,8.6604,104.02,103.94,3.61844302]
[1770078786367,8.6604,104.02,103.96,3.61844302]
[1770078786663,8.6592,104.04,103.96,3.61844302]
[1770078786867,9.00629948,104.04,103.96,3.61844302]
[1770078787067,9.00629948,104.04,103.97,3.61844302]
[1770078787567,0.06122269,104.01,103.97,3.61844302]
[1770078787766,0.00060004,104.01,103.98,3.6181541]
[1770078788469,0.34767731,104.06,103.99,3.6181541]
[1770078789570,0.34767731,104.06,104.0,3.65706515]
[1770078791467,9.00507731,104.06,104.0,3.65706515]
[1770078792468,0.2322845,104.05,104.0,3.65706515]
[1770078793068,8.6588,104.04,103.98,227.69585051]
[1770078793270,8.6588,104.04,103.99,3.67585051]
[1770078796470,8.88619186,104.04,103.99,3.67585051]
[1770078796675,8.6596,104.03,103.98,3.67829683]
[1770078797273,8.88699186,104.03,103.98,3.67829683]
[1770078798275,0.41415954,104.02,103.96,3.58979431]
[1770078798979,0.41415954,104.01,103.96,3.58979431]
[1770078799674,0.41415954,104.01,103.93,3.58979431]
[1770078800580,0.45350028,103.99,103.93,3.58979431]
[1770078801273,8.6638,103.98,103.93,3.58979431]
[1770078802082,8.6626,104.0,103.94,3.96179711]
[1770078802283,134.7057,104.03,103.94,3.96179711]
[1770078802584,134.7057,104.03,103.96,0.06157259]
[1770078802974,134.6938,104.04,103.96,4.0233697]
[1770078803179,134.6938,104.04,103.96,3.96179711]
[1770078803783,134.6743,104.06,103.98,3.98373236]
[1770078805283,134.6618,104.07,104.01,0.06079244]
[1770078805484,134.6667,104.06,104.01,0.06079244]
[1770078806279,8.6588,104.04,104.01,0.06079244]
[1770078808482,134.7215,104.02,103.93,4.01006134]
[1770078808791,134.7436,104.0,103.91,4.01006134]
[1770078809285,8.6637,103.98,103.91,4.01006134]
[1770078809587,134.7567,103.99,103.91,4.01006134]
[1770078810385,8.6653,103.97,103.91,4.01006134]
[1770078811388,134.7308,104.01,103.92,4.01124821]
[1770078811686,134.7563,103.99,103.91,8.6695]
[1770078811889,134.7563,103.99,103.88,3.97565995]
[1770078811890,134.7823,103.97,103.88,3.97565995]
[1770078812091,134.7962,103.96,103.88,3.97565995]
[1770078812490,134.8083,103.95,103.88,3.97565995]
[1770078813389,134.8264,103.94,103.86,3.88270122]
[1770078813586,134.8341,103.93,103.86,3.88270122]
[1770078813788,134.8473,103.92,103.84,3.88270122]
[1770078814794,8.6706,103.9,103.84,3.88270122]
[1770078815598,8.6714,103.89,103.84,3.88270122]
[1770078816499,134.8892,103.89,103.8,3.83043297]
[1770078816991,8.6719,103.89,103.8,3.83043297]
[1770078817588,8.6725,103.88,103.8,3.83043297]
[1770078818797,8.6708,103.9,103.81,3.78083483]
[1770078819393,8.74673175,103.9,103.81,3.78083483]
[1770078819591,8.6713,103.89,103.82,3.7500502]
[1770078820602,8.74723175,103.89,103.82,3.7500502]
[1770078820996,0.07593175,103.89,103.83,3.7500502]
[1770078823299,0.07550305,103.93,103.84,3.75026455]
[1770078824299,8.74420305,103.92,103.85,12.42466455]
[1770078824700,0.07550305,103.92,103.86,8.6736]
[1770078824894,8.74310305,103.94,103.87,3.75026455]
[1770078825900,8.71689502,103.93,103.87,3.75026455]
[1770078826098,0.04899502,103.92,103.87,3.75026455]
[1770078826298,0.04899502,103.92,103.85,3.76351857]
[1770078827404,8.6696,103.91,103.85,3.76351857]
[1770078831207,8.70981058,103.91,103.85,3.76351857]
[1770078834606,0.04693533,103.9,103.83,12.44977367]
[1770078834909,0.04693533,103.9,103.84,3.77357367]
[1770078835110,8.71803533,103.9,103.84,3.77357367]
[1770078838707,0.09459989,103.88,103.82,3.75430184]
[1770078840410,0.09459989,103.88,103.83,3.75430184]
[1770078840807,0.15730575,103.87,103.81,3.75430184]
[1770078841012,0.15730575,103.87,103.8,383.96]
[1770078841815,0.15430042,103.86,103.79,3.75430184]
[1770078842017,0.15430042,103.85,103.77,3.75430184]
[1770078842317,8.6764,103.83,103.77,3.75430184]
[1770078842520,8.6764,103.83,103.76,8.6813]
[1770078842521,0.15430042,103.82,103.75,3.75430184]
[1770078842720,0.15430042,103.82,103.74,384.04]
[1770078842721,0.15430042,103.81,103.74,384.04]
[1770078843118,0.15430042,103.79,103.73,3.75430184]
[1770078843320,0.15406769,103.78,103.7,3.75430184]
[1770078844122,0.15406769,103.78,103.72,3.75430184]
[1770078846024,0.1781744,103.77,103.7,3.75430184]
[1770078846518,0.1781744,103.79,103.71,3.75430184]
[1770078847425,8.6811,103.78,103.72,12.43970184]
[1770078847622,8.6811,103.78,103.72,3.75430184]
[1770078848532,8.93860036,103.78,103.72,3.75430184]
[1770078850230,8.6812,103.77,103.72,3.75430184]
[1770078850632,8.95111897,103.77,103.72,3.75430184]
[1770078850833,8.6821,103.76,103.72,3.75430184]
[1770078852135,8.6821,103.76,103.7,3.75430184]
[1770078853234,31.23,103.75,103.7,3.75430184]
[1770078853933,31.23,103.75,103.7,12.44140184]
[1770078854134,31.23,103.75,103.71,3.75430184]
[1770078855632,31.45741929,103.75,103.69,3.75430184]
[1770078857232,0.22741929,103.74,103.67,3.75430184]
[1770078857636,0.25833167,103.73,103.67,3.75430184]
[1770078857839,0.25833167,103.73,103.67,12.44390184]
[1770078858438,40.17123167,103.75,103.68,12.44300184]
[1770078858638,40.17123167,103.75,103.69,3.75430184]
[1770078859739,31.23,103.75,103.7,3.75430184]
[1770078861141,31.23,103.75,103.71,3.68331867]
[1770078861835,31.23,103.75,103.71,12.36881867]
[1770078862042,31.23,103.75,103.72,3.68949188]
[1770078868044,31.23,103.75,103.72,12.37479188]
[1770078868740,261.64,103.8,103.72,12.37479188]
[1770078868741,4.12111852,103.8,103.73,135.0914]
[1770078869247,4.12111852,103.8,103.75,8.6822]
[1770078869546,0.06062084,103.78,103.75,8.6822]
[1770078870647,0.06062084,103.78,103.73,8.6837]
[1770078871647,0.06062084,103.78,103.74,8.6837]
[1770078872246,4.12111852,103.8,103.74,8.6837]
[1770078872941,8.678,103.81,103.75,8.6826]
[1770078873847,12.77418203,103.82,103.75,8.6826]
[1770078874852,12.77926062,103.84,103.75,519.5453]
[1770078875549,12.77926062,103.84,103.78,8.6802]
[1770078876651,4.10366062,103.84,103.78,135.0216]
[1770078876844,394.8919,103.89,103.78,135.0216]
[1770078876845,4.10883528,103.88,103.78,135.0216]
[1770078877043,4.10883528,103.88,103.79,135.0139]
[1770078877453,12.77587147,103.87,103.82,8.677]
[1770078877752,4.10287147,103.87,103.82,8.677]
[1770078878948,12.77577147,103.87,103.81,8.6778]
[1770078880754,4.11857696,103.86,103.81,8.6778]
[1770078880956,4.11857696,103.85,103.8,8.6786]
[1770078881150,4.11857696,103.85,103.76,135.0541]
[1770078881456,4.11857696,103.85,103.75,519.4279]
[1770078881656,4.14231353,103.82,103.77,8.6812]
[1770078881856,4.14231353,103.82,103.75,384.36]
[1770078883060,12.81951353,103.82,103.75,393.0425]
[1770078884155,4.14231353,103.82,103.75,393.0425]
[1770078884360,8.6762,103.83,103.76,8.682]
[1770078884561,8.6762,103.83,103.75,384.36]
[1770078884861,8.6771,103.82,103.75,393.0428]
[1770078885761,8.6771,103.82,103.75,8.6828]
[1770078886756,4.18446523,103.82,103.75,8.6828]
[1770078888161,4.18446523,103.82,103.75,393.0228]
[1770078889766,4.18446523,103.82,103.76,8.6818]
[1770078892458,4.18446523,103.82,103.77,8.6812]
[1770078892658,4.20227231,103.84,103.76,135.0536]
[1770078892858,4.20227231,103.84,103.77,329.46]
[1770078893058,4.20227231,103.84,103.78,8.6802]
[1770078893467,4.20272778,103.83,103.78,8.6802]
[1770078894462,4.20272778,103.82,103.77,8.6811]
[1770078895965,4.20272778,103.82,103.78,8.6803]
[1770078896166,4.20272778,103.82,103.75,519.4041]